fUSD/lending_fUSD_20260512
["ID","MTS","AMOUNT","RATE_DAILY","PERIOD"]
[422045451,1778528777000,-500.0,0.00041025,120]
[422045453,1778528777000,-921.89,0.00041025,120]
[422045449,1778528777000,-921.89,0.00041025,120]
[422045452,1778528777000,-550.11494807,0.00041025,120]
[422045448,1778528777000,-921.89,0.00041025,120]
[422045443,1778528777000,-285.52,0.00041025,120]
[422045446,1778528777000,-921.89,0.00041025,120]
[422045445,1778528777000,-921.89,0.00041025,120]
[422045444,1778528777000,-569.23856103,0.00041025,120]
[422045442,1778528777000,-299.59333877,0.00041025,120]
[422045447,1778528777000,-583.66624848,0.00041025,120]
[422045456,1778528777000,-571.87144308,0.00041025,120]
[422045465,1778528777000,-541.23,0.00041025,120]
[422045455,1778528777000,-921.89,0.00041025,120]
[422045454,1778528777000,-500.0,0.00041025,120]
[422045468,1778528777000,-921.89,0.00041025,120]
[422045467,1778528777000,-500.0,0.00041025,120]
[422045466,1778528777000,-921.89,0.00041025,120]
[422045463,1778528777000,-921.89,0.00041025,120]
[422045464,1778528777000,-500.0,0.00041025,120]
[422045461,1778528777000,-921.89,0.00041025,120]
[422045460,1778528777000,-500.0,0.00041025,120]
[422045459,1778528777000,-500.0,0.00041025,120]
[422045458,1778528777000,-921.89,0.00041025,120]
[422045457,1778528777000,-921.89,0.00041025,120]
[422045462,1778528777000,-500.0,0.00041025,120]
[422045480,1778528778000,-921.89,0.00041025,120]
[422045478,1778528778000,-500.0,0.00041025,120]
[422045479,1778528778000,-921.89,0.00041025,120]
[422045477,1778528778000,-432.54494395,0.00041025,120]
[422045476,1778528778000,-921.89,0.00041025,120]
[422045475,1778528778000,-500.0,0.00041025,120]
[422045471,1778528778000,-921.89,0.00041025,120]
[422045474,1778528778000,-921.89,0.00041025,120]
[422045472,1778528778000,-500.0,0.00041025,120]
[422045470,1778528778000,-309.784366,0.00041025,120]
[422045469,1778528778000,-500.0,0.00041025,120]
[422045482,1778528778000,-595.52011373,0.00041025,120]
[422045473,1778528778000,-610.40222281,0.00041025,120]
[422045481,1778528778000,-921.89,0.00041025,120]
[422045491,1778528778000,-500.0,0.00041025,120]
[422045485,1778528778000,-921.89,0.00041025,120]
[422045497,1778528778000,-500.0,0.00041025,120]
[422045496,1778528778000,-500.0,0.00041025,120]
[422045494,1778528778000,-500.0,0.00041025,120]
[422045495,1778528778000,-503.45826381,0.00041025,120]
[422045493,1778528778000,-921.9301842,0.00041025,120]
[422045492,1778528778000,-921.89,0.00041025,120]
[422045483,1778528778000,-921.89,0.00041025,120]
[422045489,1778528778000,-542.45963839,0.00041025,120]
[422045486,1778528778000,-500.0,0.00041025,120]
[422045488,1778528778000,-921.89,0.00041025,120]
[422045487,1778528778000,-500.0,0.00041025,120]
[422045484,1778528778000,-500.0,0.00041025,120]
[422045490,1778528778000,-436.61,0.00041025,120]
[422045511,1778528779000,-500.0,0.00041025,120]
[422045509,1778528779000,-500.0,0.00041025,120]
[422045508,1778528779000,-500.0,0.00041025,120]
[422045507,1778528779000,-160.89679898,0.00041025,120]
[422045506,1778528779000,-500.0,0.00041025,120]
[422045504,1778528779000,-500.0,0.00041025,120]
[422045501,1778528779000,-338.11887992,0.00041025,120]
[422045503,1778528779000,-500.0,0.00041025,120]
[422045502,1778528779000,-555.34099845,0.00041025,120]
[422045499,1778528779000,-621.18,0.00041025,120]
[422045500,1778528779000,-500.0,0.00041025,120]
[422045510,1778528779000,-216.3,0.00041025,120]
[422045505,1778528779000,-500.0,0.00041025,120]
[422045498,1778528779000,-460.27507973,0.00041025,120]
[422045513,1778528779000,-500.0,0.00041025,120]
[422045514,1778528779000,-518.04418986,0.00041025,120]
[422045512,1778528779000,-500.0,0.00041025,120]
[422045524,1778528779000,-500.0,0.00041025,120]
[422045525,1778528779000,-500.0,0.00041025,120]
[422045523,1778528779000,-506.15527621,0.00041025,120]
[422045521,1778528779000,-532.93158733,0.00041025,120]
[422045522,1778528779000,-523.58414021,0.00041025,120]
[422045526,1778528779000,-351.71273744,0.00041025,120]
[422045520,1778528779000,-517.14863027,0.00041025,120]
[422045519,1778528779000,-519.49287556,0.00041025,120]
[422045517,1778528779000,-596.48391659,0.00041025,120]
[422045515,1778528779000,-500.0,0.00041025,120]
[422045516,1778528779000,-601.01553425,0.00041025,120]
[422045518,1778528779000,-509.73535587,0.00041025,120]
[422045538,1778528780000,-500.0,0.00041025,120]
[422045537,1778528780000,-500.0,0.00041025,120]
[422045535,1778528780000,-500.0,0.00041025,120]
[422045533,1778528780000,-500.0,0.00041025,120]
[422045534,1778528780000,-472.888042,0.00041025,120]
[422045531,1778528780000,-299.4145791,0.00041025,120]
[422045530,1778528780000,-500.0,0.00041025,120]
[422045529,1778528780000,-500.0,0.00041025,120]
[422045528,1778528780000,-545.21944128,0.00041025,120]
[422045527,1778528780000,-554.16157272,0.00041025,120]
[422045532,1778528780000,-530.26428322,0.00041025,120]
[422045540,1778528780000,-500.0,0.00041025,120]
[422045536,1778528780000,-253.07,0.00041025,120]
[422045541,1778528780000,-442.35,0.00041025,120]
[422045539,1778528780000,-500.0,0.00041025,120]
[422045553,1778528780000,-500.0,0.00041025,120]
[422045551,1778528780000,-500.0,0.00041025,120]
[422045549,1778528780000,-643.18560985,0.00041025,120]
[422045550,1778528780000,-518.70135609,0.00041025,120]
[422045548,1778528780000,-500.0,0.00041025,120]
[422045542,1778528780000,-564.06515257,0.00041025,120]
[422045546,1778528780000,-500.0,0.00041025,120]
[422045545,1778528780000,-509.28458225,0.00041025,120]
[422045543,1778528780000,-500.0,0.00041025,120]
[422045544,1778528780000,-151.02945304,0.00041025,120]
[422045547,1778528780000,-249.86957881,0.00041025,120]
[422045568,1778528781000,-282.94949937,0.00041025,120]
[422045567,1778528781000,-500.0,0.00041025,120]
[422045566,1778528781000,-500.0,0.00041025,120]
[422045564,1778528781000,-536.01009737,0.00041025,120]
[422045563,1778528781000,-465.21431085,0.00041025,120]
[422045560,1778528781000,-532.48184456,0.00041025,120]
[422045561,1778528781000,-500.09490868,0.00041025,120]
[422045570,1778528781000,-531.74553299,0.00041025,120]
[422045558,1778528781000,-193.64516679,0.00041025,120]
[422045559,1778528781000,-502.62511313,0.00041025,120]
[422045557,1778528781000,-500.0,0.00041025,120]
[422045562,1778528781000,-500.0,0.00041025,120]
[422045569,1778528781000,-500.0,0.00041025,120]
[422045565,1778528781000,-563.30584025,0.00041025,120]
[422045572,1778528781000,-526.48862153,0.00041025,120]
[422045571,1778528781000,-506.0040874,0.00041025,120]
[422045583,1778528781000,-500.0,0.00041025,120]
[422045581,1778528781000,-500.0,0.00041025,120]
[422045582,1778528781000,-500.0,0.00041025,120]
[422045580,1778528781000,-474.61161841,0.00041025,120]
[422045578,1778528781000,-553.66233463,0.00041025,120]
[422045584,1778528781000,-326.1043057,0.00041025,120]
[422045579,1778528781000,-176.14617383,0.00041025,120]
[422045576,1778528781000,-580.69010561,0.00041025,120]
[422045574,1778528781000,-529.02071285,0.00041025,120]
[422045575,1778528781000,-500.0,0.00041025,120]
[422045573,1778528781000,-560.22836366,0.00041025,120]
[422045577,1778528781000,-500.0,0.00041025,120]
[422045594,1778528782000,-520.43994203,0.00041025,120]
[422045596,1778528782000,-215.98172528,0.00041025,120]
[422045595,1778528782000,-575.84263594,0.00041025,120]
[422045593,1778528782000,-500.0,0.00041025,120]
[422045591,1778528782000,-500.0,0.00041025,120]
[422045592,1778528782000,-617.15951989,0.00041025,120]
[422045589,1778528782000,-518.90552659,0.00041025,120]
[422045588,1778528782000,-579.97843139,0.00041025,120]
[422045587,1778528782000,-520.29407841,0.00041025,120]
[422045585,1778528782000,-534.73252393,0.00041025,120]
[422045586,1778528782000,-500.0,0.00041025,120]
[422045598,1778528782000,-557.29776458,0.00041025,120]
[422045590,1778528782000,-500.0,0.00041025,120]
[422045597,1778528782000,-515.49817007,0.00041025,120]
[422045608,1778528782000,-391.00480276,0.00041025,120]
[422045601,1778528782000,-524.81546652,0.00041025,120]
[422045599,1778528782000,-518.38706704,0.00041025,120]
[422045612,1778528782000,-500.0,0.00041025,120]
[422045613,1778528782000,-524.78847448,0.00041025,120]
[422045611,1778528782000,-500.0,0.00041025,120]
[422045609,1778528782000,-500.0,0.00041025,120]
[422045610,1778528782000,-500.0,0.00041025,120]
[422045614,1778528782000,-500.0,0.00041025,120]
[422045606,1778528782000,-500.0,0.00041025,120]
[422045605,1778528782000,-508.75930954,0.00041025,120]
[422045604,1778528782000,-602.70981981,0.00041025,120]
[422045603,1778528782000,-221.65519063,0.00041025,120]
[422045602,1778528782000,-500.0,0.00041025,120]
[422045600,1778528782000,-516.46227336,0.00041025,120]
[422045607,1778528782000,-500.0,0.00041025,120]
[422045626,1778528783000,-566.00455296,0.00041025,120]
[422045627,1778528783000,-500.0,0.00041025,120]
[422045625,1778528783000,-500.0,0.00041025,120]
[422045623,1778528783000,-500.0,0.00041025,120]
[422045624,1778528783000,-500.0,0.00041025,120]
[422045621,1778528783000,-500.0,0.00041025,120]
[422045619,1778528783000,-500.0,0.00041025,120]
[422045618,1778528783000,-500.0,0.00041025,120]
[422045620,1778528783000,-500.0,0.00041025,120]
[422045615,1778528783000,-500.0,0.00041025,120]
[422045617,1778528783000,-500.0,0.00041025,120]
[422045616,1778528783000,-391.36430179,0.00041025,120]
[422045622,1778528783000,-500.0,0.00041025,120]
[422045629,1778528783000,-500.0,0.00041025,120]
[422045637,1778528783000,-500.0,0.00041025,120]
[422045628,1778528783000,-628.59784148,0.00041025,120]
[422045641,1778528783000,-500.0,0.00041025,120]
[422045640,1778528783000,-558.80011661,0.00041025,120]
[422045642,1778528783000,-500.0,0.00041025,120]
[422045643,1778528783000,-500.0,0.00041025,120]
[422045638,1778528783000,-495.81,0.00041025,120]
[422045639,1778528783000,-558.86949346,0.00041025,120]
[422045644,1778528783000,-500.0,0.00041025,120]
[422045636,1778528783000,-500.0,0.00041025,120]
[422045635,1778528783000,-500.0,0.00041025,120]
[422045631,1778528783000,-500.0,0.00041025,120]
[422045630,1778528783000,-500.0,0.00041025,120]
[422045632,1778528783000,-577.19,0.00041025,120]
[422045634,1778528783000,-476.34,0.00041025,120]
[422045633,1778528783000,-500.0,0.00041025,120]
[422045657,1778528784000,-500.0,0.00041025,120]
[422045645,1778528784000,-288.99409272,0.00041025,120]
[422045646,1778528784000,-621.53106571,0.00041025,120]
[422045647,1778528784000,-551.72758352,0.00041025,120]
[422045649,1778528784000,-500.0,0.00041025,120]
[422045650,1778528784000,-500.0,0.00041025,120]
[422045653,1778528784000,-500.0,0.00041025,120]
[422045651,1778528784000,-564.75192351,0.00041025,120]
[422045652,1778528784000,-546.29112659,0.00041025,120]
[422045654,1778528784000,-517.70807744,0.00041025,120]
[422045656,1778528784000,-521.78289579,0.00041025,120]
[422045655,1778528784000,-249.96,0.00041025,120]
[422045648,1778528784000,-500.0,0.00041025,120]
[422045658,1778528784000,-587.35114162,0.00041025,120]
[422045660,1778528784000,-500.0,0.00041025,120]
[422045659,1778528784000,-500.0,0.00041025,120]
[422045672,1778528784000,-304.18169236,0.00041025,120]
[422045671,1778528784000,-500.0,0.00041025,120]
[422045669,1778528784000,-168.93125677,0.00041025,120]
[422045670,1778528784000,-611.04362912,0.00041025,120]
[422045666,1778528784000,-457.31143983,0.00041025,120]
[422045668,1778528784000,-500.0,0.00041025,120]
[422045665,1778528784000,-521.64613556,0.00041025,120]
[422045664,1778528784000,-606.97549724,0.00041025,120]
[422045663,1778528784000,-392.54,0.00041025,120]
[422045662,1778528784000,-500.0,0.00041025,120]
[422045661,1778528784000,-500.0,0.00041025,120]
[422045667,1778528784000,-500.0,0.00041025,120]
[422045681,1778528785000,-500.0,0.00041025,120]
[422045684,1778528785000,-500.0,0.00041025,120]
[422045683,1778528785000,-500.0,0.00041025,120]
[422045682,1778528785000,-216.62153991,0.00041025,120]
[422045680,1778528785000,-500.0,0.00041025,120]
[422045679,1778528785000,-500.0,0.00041025,120]
[422045685,1778528785000,-500.0,0.00041025,120]
[422045677,1778528785000,-584.4,0.00041025,120]
[422045676,1778528785000,-500.0,0.00041025,120]
[422045675,1778528785000,-500.0,0.00041025,120]
[422045674,1778528785000,-542.28093476,0.00041025,120]
[422045673,1778528785000,-500.0,0.00041025,120]
[422045678,1778528785000,-500.0,0.00041025,120]
[422045687,1778528785000,-500.0,0.00041025,120]
[422045699,1778528785000,-500.0,0.00041025,120]
[422045688,1778528785000,-265.0696419,0.00041025,120]
[422045700,1778528785000,-500.0,0.00041025,120]
[422045698,1778528785000,-393.84037517,0.00041025,120]
[422045701,1778528785000,-500.0,0.00041025,120]
[422045697,1778528785000,-500.0,0.00041025,120]
[422045695,1778528785000,-510.11262997,0.00041025,120]
[422045694,1778528785000,-386.72843548,0.00041025,120]
[422045686,1778528785000,-500.0,0.00041025,120]
[422045692,1778528785000,-520.58925709,0.00041025,120]
[422045693,1778528785000,-500.0,0.00041025,120]
[422045691,1778528785000,-583.14303979,0.00041025,120]
[422045690,1778528785000,-600.60368496,0.00041025,120]
[422045689,1778528785000,-500.0,0.00041025,120]
[422045696,1778528785000,-500.0,0.00041025,120]
[422045713,1778528786000,-500.0,0.00041025,120]
[422045714,1778528786000,-566.3040349,0.00041025,120]
[422045712,1778528786000,-477.77588349,0.00041025,120]
[422045709,1778528786000,-500.0,0.00041025,120]
[422045710,1778528786000,-500.0,0.00041025,120]
[422045711,1778528786000,-627.10250493,0.00041025,120]
[422045708,1778528786000,-547.25999138,0.00041025,120]
[422045706,1778528786000,-500.0,0.00041025,120]
[422045705,1778528786000,-500.0,0.00041025,120]
[422045704,1778528786000,-500.0,0.00041025,120]
[422045703,1778528786000,-529.26,0.00041025,120]
[422045716,1778528786000,-300.65370161,0.00041025,120]
[422045707,1778528786000,-628.58,0.00041025,120]
[422045702,1778528786000,-500.0,0.00041025,120]
[422045717,1778528786000,-500.0,0.00041025,120]
[422045718,1778528786000,-500.0,0.00041025,120]
[422045715,1778528786000,-500.0,0.00041025,120]
[422045729,1778528786000,-500.0,0.00041025,120]
[422045730,1778528786000,-500.0,0.00041025,120]
[422045728,1778528786000,-500.0,0.00041025,120]
[422045727,1778528786000,-199.93,0.00041025,120]
[422045725,1778528786000,-516.56917895,0.00041025,120]
[422045731,1778528786000,-500.0,0.00041025,120]
[422045726,1778528786000,-500.0,0.00041025,120]
[422045722,1778528786000,-500.0,0.00041025,120]
[422045723,1778528786000,-500.0,0.00041025,120]
[422045721,1778528786000,-211.61071687,0.00041025,120]
[422045719,1778528786000,-500.0,0.00041025,120]
[422045720,1778528786000,-625.41462333,0.00041025,120]
[422045724,1778528786000,-440.66369446,0.00041025,120]
[422045743,1778528787000,-500.0,0.00041025,120]
[422045741,1778528787000,-224.47614207,0.00041025,120]
[422045742,1778528787000,-500.0,0.00041025,120]
[422045740,1778528787000,-500.0,0.00041025,120]
[422045739,1778528787000,-614.40195034,0.00041025,120]
[422045735,1778528787000,-590.51711539,0.00041025,120]
[422045738,1778528787000,-580.81,0.00041025,120]
[422045736,1778528787000,-514.87441931,0.00041025,120]
[422045733,1778528787000,-636.49448667,0.00041025,120]
[422045734,1778528787000,-500.0,0.00041025,120]
[422045732,1778528787000,-500.0,0.00041025,120]
[422045737,1778528787000,-500.0,0.00041025,120]
[422045744,1778528787000,-207.76725106,0.00041025,120]
[422045746,1778528787000,-500.0,0.00041025,120]
[422045748,1778528787000,-542.25867098,0.00041025,120]
[422045758,1778528787000,-559.82489008,0.00041025,120]
[422045756,1778528787000,-366.64906192,0.00041025,120]
[422045757,1778528787000,-500.0,0.00041025,120]
[422045755,1778528787000,-500.0,0.00041025,120]
[422045754,1778528787000,-271.54,0.00041025,120]
[422045745,1778528787000,-500.0,0.00041025,120]
[422045752,1778528787000,-322.23,0.00041025,120]
[422045750,1778528787000,-500.0,0.00041025,120]
[422045749,1778528787000,-564.28754238,0.00041025,120]
[422045751,1778528787000,-500.0,0.00041025,120]
[422045747,1778528787000,-263.24454951,0.00041025,120]
[422045753,1778528787000,-500.0,0.00041025,120]
[422045769,1778528788000,-500.0,0.00041025,120]
[422045770,1778528788000,-500.0,0.00041025,120]
[422045767,1778528788000,-158.27617212,0.00041025,120]
[422045768,1778528788000,-369.45529845,0.00041025,120]
[422045765,1778528788000,-500.0,0.00041025,120]
[422045761,1778528788000,-543.57,0.00041025,120]
[422045766,1778528788000,-500.0,0.00041025,120]
[422045763,1778528788000,-500.0,0.00041025,120]
[422045762,1778528788000,-577.68936664,0.00041025,120]
[422045759,1778528788000,-500.0,0.00041025,120]
[422045771,1778528788000,-500.0,0.00041025,120]
[422045764,1778528788000,-500.0,0.00041025,120]
[422045760,1778528788000,-500.0,0.00041025,120]
[422045773,1778528788000,-500.0,0.00041025,120]
[422045772,1778528788000,-500.0,0.00041025,120]
[422045774,1778528788000,-500.0,0.00041025,120]
[422045786,1778528788000,-500.0,0.00041025,120]
[422045784,1778528788000,-500.0,0.00041025,120]
[422045785,1778528788000,-507.5480774,0.00041025,120]
[422045781,1778528788000,-500.0,0.00041025,120]
[422045782,1778528788000,-350.96793337,0.00041025,120]
[422045783,1778528788000,-620.56473896,0.00041025,120]
[422045779,1778528788000,-500.0,0.00041025,120]
[422045778,1778528788000,-500.0,0.00041025,120]
[422045777,1778528788000,-500.0,0.00041025,120]
[422045775,1778528788000,-217.35446567,0.00041025,120]
[422045776,1778528788000,-500.0,0.00041025,120]
[422045780,1778528788000,-500.0,0.00041025,120]
[422045793,1778528789000,-504.49481388,0.00041025,120]
[422045796,1778528789000,-500.0,0.00041025,120]
[422045797,1778528789000,-500.0,0.00041025,120]
[422045795,1778528789000,-627.83406987,0.00041025,120]
[422045792,1778528789000,-500.0,0.00041025,120]
[422045799,1778528789000,-445.23624516,0.00041025,120]
[422045791,1778528789000,-500.0,0.00041025,120]
[422045790,1778528789000,-519.84377268,0.00041025,120]
[422045789,1778528789000,-500.0,0.00041025,120]
[422045787,1778528789000,-500.0,0.00041025,120]
[422045788,1778528789000,-547.78196513,0.00041025,120]
[422045794,1778528789000,-500.0,0.00041025,120]
[422045798,1778528789000,-500.0,0.00041025,120]
[422045803,1778528789000,-500.0,0.00041025,120]
[422045801,1778528789000,-500.0,0.00041025,120]
[422045813,1778528789000,-601.78045755,0.00041025,120]
[422045811,1778528789000,-500.0,0.00041025,120]
[422045812,1778528789000,-500.0,0.00041025,120]
[422045810,1778528789000,-605.01937185,0.00041025,120]
[422045809,1778528789000,-500.0,0.00041025,120]
[422045807,1778528789000,-508.94458826,0.00041025,120]
[422045800,1778528789000,-500.0,0.00041025,120]
[422045806,1778528789000,-485.50440982,0.00041025,120]
[422045805,1778528789000,-565.60644775,0.00041025,120]
[422045804,1778528789000,-500.0,0.00041025,120]
[422045802,1778528789000,-500.0,0.00041025,120]
[422045814,1778528789000,-500.0,0.00041025,120]
[422045808,1778528789000,-500.0,0.00041025,120]
[422045825,1778528790000,-335.00764155,0.00041025,120]
[422045824,1778528790000,-500.0,0.00041025,120]
[422045823,1778528790000,-485.02372677,0.00041025,120]
[422045822,1778528790000,-212.19587104,0.00041025,120]
[422045821,1778528790000,-500.0,0.00041025,120]
[422045818,1778528790000,-247.10583577,0.00041025,120]
[422045819,1778528790000,-525.68761215,0.00041025,120]
[422045817,1778528790000,-500.0,0.00041025,120]
[422045815,1778528790000,-206.1351236,0.00041025,120]
[422045816,1778528790000,-514.69944813,0.00041025,120]
[422045827,1778528790000,-500.0,0.00041025,120]
[422045820,1778528790000,-500.0,0.00041025,120]
[422045826,1778528790000,-243.51370767,0.00041025,120]
[422045828,1778528790000,-500.0,0.00041025,120]
[422045840,1778528790000,-500.0,0.00041025,120]
[422045842,1778528790000,-500.0,0.00041025,120]
[422045829,1778528790000,-529.58223446,0.00041025,120]
[422045839,1778528790000,-194.45144937,0.00041025,120]
[422045841,1778528790000,-770.01,0.00041025,120]
[422045838,1778528790000,-770.01,0.00041025,120]
[422045836,1778528790000,-500.0,0.00041025,120]
[422045837,1778528790000,-500.0,0.00041025,120]
[422045834,1778528790000,-770.01,0.00041025,120]
[422045833,1778528790000,-770.01,0.00041025,120]
[422045832,1778528790000,-770.01,0.00041025,120]
[422045831,1778528790000,-770.01,0.00041025,120]
[422045830,1778528790000,-770.01,0.00041025,120]
[422045835,1778528790000,-770.01,0.00041025,120]
[422045850,1778528791000,-770.01,0.00041025,120]
[422045853,1778528791000,-770.01,0.00041025,120]
[422045852,1778528791000,-770.01,0.00041025,120]
[422045851,1778528791000,-770.01,0.00041025,120]
[422045849,1778528791000,-770.01,0.00041025,120]
[422045854,1778528791000,-770.01,0.00041025,120]
[422045847,1778528791000,-770.01,0.00041025,120]
[422045846,1778528791000,-770.01,0.00041025,120]
[422045845,1778528791000,-770.01,0.00041025,120]
[422045843,1778528791000,-770.01,0.00041025,120]
[422045848,1778528791000,-468.66063686,0.00041025,120]
[422045855,1778528791000,-770.01,0.00041025,120]
[422045844,1778528791000,-500.0,0.00041025,120]
[422045856,1778528791000,-770.01,0.00041025,120]
[422045866,1778528791000,-536.37915948,0.00041025,120]
[422045867,1778528791000,-500.0,0.00041025,120]
[422045868,1778528791000,-500.0,0.00041025,120]
[422045863,1778528791000,-317.85448172,0.00041025,120]
[422045865,1778528791000,-576.8353539,0.00041025,120]
[422045857,1778528791000,-770.01,0.00041025,120]
[422045861,1778528791000,-500.0,0.00041025,120]
[422045862,1778528791000,-500.0,0.00041025,120]
[422045858,1778528791000,-770.01,0.00041025,120]
[422045860,1778528791000,-770.14,0.00041025,120]
[422045859,1778528791000,-770.01,0.00041025,120]
[422045864,1778528791000,-500.0,0.00041025,120]
[422045878,1778528792000,-500.0,0.00041025,120]
[422045877,1778528792000,-514.1091452,0.00041025,120]
[422045875,1778528792000,-221.54212157,0.00041025,120]
[422045876,1778528792000,-500.0,0.00041025,120]
[422045874,1778528792000,-500.0,0.00041025,120]
[422045870,1778528792000,-540.26782302,0.00041025,120]
[422045873,1778528792000,-500.0,0.00041025,120]
[422045871,1778528792000,-500.0,0.00041025,120]
[422045869,1778528792000,-303.16936156,0.00041025,120]
[422045879,1778528792000,-500.0,0.00041025,120]
[422045872,1778528792000,-500.0,0.00041025,120]
[422045880,1778528792000,-547.12218048,0.00041025,120]
[422045881,1778528792000,-500.0,0.00041025,120]
[422045882,1778528792000,-500.0,0.00041025,120]
[422045892,1778528792000,-592.53,0.00041025,120]
[422045893,1778528792000,-500.0,0.00041025,120]
[422045890,1778528792000,-500.0,0.00041025,120]
[422045889,1778528792000,-500.0,0.00041025,120]
[422045887,1778528792000,-509.91279218,0.00041025,120]
[422045891,1778528792000,-515.40672397,0.00041025,120]
[422045885,1778528792000,-486.15454283,0.00041025,120]
[422045886,1778528792000,-525.0386184,0.00041025,120]
[422045884,1778528792000,-500.0,0.00041025,120]
[422045883,1778528792000,-464.40208944,0.00041025,120]
[422045888,1778528792000,-500.0,0.00041025,120]
[422045900,1778528793000,-500.0,0.00041025,120]
[422045904,1778528793000,-500.0,0.00041025,120]
[422045901,1778528793000,-500.0,0.00041025,120]
[422045902,1778528793000,-495.88,0.00041025,120]
[422045898,1778528793000,-500.0,0.00041025,120]
[422045894,1778528793000,-500.0,0.00041025,120]
[422045896,1778528793000,-506.35953366,0.00041025,120]
[422045897,1778528793000,-500.0,0.00041025,120]
[422045895,1778528793000,-577.57891354,0.00041025,120]
[422045905,1778528793000,-500.0,0.00041025,120]
[422045899,1778528793000,-500.0,0.00041025,120]
[422045903,1778528793000,-519.52668961,0.00041025,120]
[422045919,1778528793000,-500.0,0.00041025,120]
[422045906,1778528793000,-403.34478148,0.00041025,120]
[422045907,1778528793000,-500.0,0.00041025,120]
[422045920,1778528793000,-334.21637845,0.00041025,120]
[422045918,1778528793000,-598.15182214,0.00041025,120]
[422045915,1778528793000,-500.0,0.00041025,120]
[422045916,1778528793000,-517.90161743,0.00041025,120]
[422045917,1778528793000,-638.59,0.00041025,120]
[422045914,1778528793000,-609.10051973,0.00041025,120]
[422045912,1778528793000,-331.1,0.00041025,120]
[422045910,1778528793000,-512.66407337,0.00041025,120]
[422045911,1778528793000,-500.0,0.00041025,120]
[422045908,1778528793000,-500.0,0.00041025,120]
[422045913,1778528793000,-500.0,0.00041025,120]
[422045927,1778528794000,-500.0,0.00041025,120]
[422045929,1778528794000,-522.50353543,0.00041025,120]
[422045931,1778528794000,-519.99963365,0.00041025,120]
[422045930,1778528794000,-603.17884644,0.00041025,120]
[422045928,1778528794000,-152.47478492,0.00041025,120]
[422045921,1778528794000,-500.0,0.00041025,120]
[422045925,1778528794000,-391.7031038,0.00041025,120]
[422045924,1778528794000,-500.0,0.00041025,120]
[422045932,1778528794000,-509.69921246,0.00041025,120]
[422045923,1778528794000,-157.48159654,0.00041025,120]
[422045922,1778528794000,-500.04128954,0.00041025,120]
[422045926,1778528794000,-500.0,0.00041025,120]
[422045934,1778528794000,-500.0,0.00041025,120]
[422045943,1778528794000,-500.0,0.00041025,120]
[422045936,1778528794000,-500.0,0.00041025,120]
[422045933,1778528794000,-506.72705624,0.00041025,120]
[422045947,1778528794000,-500.0,0.00041025,120]
[422045944,1778528794000,-500.0,0.00041025,120]
[422045945,1778528794000,-434.29278339,0.00041025,120]
[422045942,1778528794000,-319.67,0.00041025,120]
[422045946,1778528794000,-500.0,0.00041025,120]
[422045940,1778528794000,-500.0,0.00041025,120]
[422045939,1778528794000,-500.0,0.00041025,120]
[422045938,1778528794000,-500.0,0.00041025,120]
[422045937,1778528794000,-500.0,0.00041025,120]
[422045935,1778528794000,-500.0,0.00041025,120]
[422045941,1778528794000,-189.59032952,0.00041025,120]